fUST/lending_fUST_20250718
["ID","MTS","AMOUNT","RATE_DAILY","PERIOD"]
[372988658,1752834643539,-682.99,0.00023807,2]
[372988659,1752834643551,-460.0,0.00023807,2]
[372988660,1752834643562,-1000.0,0.00023818,5]
[372988661,1752834643574,-986.33,0.00023828,2]
[372988662,1752834643584,-659.20022017,0.00023831,10]
[372988663,1752834643593,-1926.48,0.00023839,6]
[372988664,1752834643603,-500.0,0.00023845,2]
[372988665,1752834643612,-3942.302754,0.00023847,2]
[372988666,1752834643622,-403.97698889,0.00023877,2]
[372988667,1752834643632,-1662.9171888,0.00023902,2]
[372988668,1752834643644,-2055.93,0.00023919,2]
[372988669,1752834643656,-1926.48,0.00023939,4]
[372988670,1752834643668,-160.0,0.00023979,3]
[372988671,1752834643679,-44798.8616394,0.00023998,2]
[372988672,1752834643690,-839.30593155,0.00024,7]
[372988673,1752834643700,-215.63268315,0.00024,7]
[372988674,1752834643710,-230.89969799,0.00024,7]
[372988675,1752834643719,-230.89969799,0.00024,10]
[372988676,1752834643730,-160.0,0.00024,7]
[372988677,1752834643744,-525.75194068,0.00024,7]
[372988678,1752834643754,-525.75194068,0.00024,10]
[372988679,1752834643764,-160.0,0.00024,7]
[372988680,1752834643774,-160.0,0.00024,10]
[372988681,1752834643784,-659.20022017,0.00024038,10]
[372988682,1752834643794,-1926.48,0.00024039,4]
[372988683,1752834643805,-6173.88104702,0.00024044,2]
[372988684,1752834643816,-400.6766763,0.00024057,2]
[372988685,1752834643826,-1030.82,0.00024057,2]
[372988686,1752834643836,-460.0,0.0002406,2]
[372988687,1752834643845,-460.0,0.0002406,2]
[372988688,1752834643855,-548.85,0.0002406,2]
[372988689,1752834643865,-190.51,0.0002406,2]
[372988690,1752834643875,-200.0,0.00024081,2]
[372988691,1752834643885,-682.99,0.00024081,2]
[372988692,1752834643895,-604.83898298,0.00024081,2]
[372988693,1752834643905,-3967.55,0.000241,7]
[372988694,1752834643915,-986.33,0.00024102,2]
[372988695,1752834643925,-800.0,0.00024129,2]
[372988696,1752834643935,-1926.48,0.00024139,2]
[372988697,1752834643945,-6173.88104702,0.00024158,2]
[372988698,1752834643955,-350.66402616,0.00024175,2]
[372988699,1752834643964,-23268.62089825,0.000242,2]
[372988700,1752834643974,-314.0,0.0002421,2]
[372988701,1752834643984,-1926.48,0.00024239,2]
[372988702,1752834643995,-659.20022017,0.00024245,10]
[372988703,1752834644006,-523.50744036,0.00024248,2]
[372988704,1752834644016,-1000.0,0.00024281,2]
[372988705,1752834644026,-42916.39,0.000243,2]
[372988706,1752834644035,-314.0,0.00024311,2]
[372988707,1752834644045,-1030.82,0.00024331,2]
[372988708,1752834644055,-460.0,0.00024334,2]
[372988709,1752834644065,-460.0,0.00024334,2]
[372988710,1752834644075,-548.85,0.00024334,2]
[372988711,1752834644086,-1926.48,0.00024339,6]
[372988712,1752834644096,-151.0,0.0002434,7]
[372988713,1752834644106,-282.360967,0.0002434,7]
[372988714,1752834644117,-25000.0,0.0002434,2]
[372988715,1752834644127,-200.0,0.00024355,2]
[372988716,1752834644137,-682.99,0.00024355,2]
[372988717,1752834644147,-500.0,0.00024373,2]
[372988718,1752834644157,-151.0,0.00024373,2]
[372988719,1752834644167,-500.0,0.00024373,2]
[372988720,1752834644177,-500.0,0.00024373,2]
[372988721,1752834644189,-986.33,0.00024376,2]
[372988722,1752834644199,-160.0,0.000244,3]
[372988723,1752834644209,-627.588781,0.000244,7]
[372988724,1752834644219,-349.796379,0.000244,7]
[372988725,1752834644229,-349.796379,0.000244,7]
[372988726,1752834644239,-323.507402,0.000244,7]
[372988727,1752834644250,-323.507402,0.000244,7]
[372988728,1752834644260,-551.959319,0.00024401,8]
[372988729,1752834644270,-163.98184823,0.00024438,2]
[372988730,1752834644280,-163.98184822,0.00024438,2]
[372988731,1752834644290,-1926.48,0.00024439,7]
[372988732,1752834644301,-659.20022017,0.00024452,11]
[372988733,1752834644311,-961.60473553,0.00024468,2]
[372988734,1752834644323,-151.0,0.000245,6]
[372988735,1752834644332,-402.936892,0.00024521,2]
[372988736,1752834644342,-523.50744033,0.00024521,2]
[372988737,1752834644351,-6173.8810471,0.00024528,2]
[372988738,1752834644361,-1926.48,0.00024539,2]
[372988739,1752834644370,-1030.82,0.00024605,2]
[372988740,1752834644382,-460.0,0.00024608,2]
[372988741,1752834644392,-460.0,0.00024608,2]
[372988742,1752834644402,-548.85,0.00024608,2]
[372988743,1752834644411,-150.92781,0.00024613,8]
[372988744,1752834644421,-250.42992241,0.00024624,2]
[372988745,1752834644431,-403.97698889,0.00024628,2]
[372988746,1752834644441,-200.0,0.00024629,2]
[372988747,1752834644450,-682.99,0.00024629,2]
[372988748,1752834644459,-150.92781,0.00024631,4]
[372988749,1752834644469,-1926.48,0.00024639,7]
[372988750,1752834644479,-500.0,0.00024647,2]
[372988751,1752834644489,-151.0,0.00024647,2]
[372988752,1752834644498,-500.0,0.00024647,2]
[372988753,1752834644508,-500.0,0.00024647,2]
[372988754,1752834644518,-986.33,0.0002465,2]
[372988755,1752834644528,-44775.42420711,0.0002465,2]
[372988756,1752834644592,-509.52806293,0.00020245,2]
[372988757,1752834644602,-1064.86,0.00020729,10]
[372988758,1752834644612,-204.82286747,0.00022,7]
[372988759,1752834644624,-490.71982744,0.00022,7]
[372988760,1752834644637,-8502.19730509,0.00022,7]
[372988761,1752834644648,-6455.86822995,0.0002465,2]
[372988762,1752834644657,-380.0,0.00024658,2]
[372988763,1752834644667,-500.0,0.00024658,2]
[372988764,1752834644676,-659.20022017,0.00024659,11]
[372988765,1752834644686,-314.0,0.00024682,2]
[372988766,1752834644696,-150.92781,0.00024692,2]
[372988767,1752834644706,-1838.08,0.000247,7]
[372988768,1752834644715,-151.0,0.000247,5]
[372988769,1752834644725,-1926.48,0.00024739,7]
[372988770,1752834644735,-216.0,0.00024743,7]
[372988771,1752834644744,-314.0,0.00024775,2]
[372988772,1752834644754,-314.0,0.0002479,2]
[372988773,1752834644764,-523.50744033,0.00024794,2]
[372988774,1752834644773,-151.0,0.000248,7]
[372988775,1752834644783,-151.0,0.000248,6]
[372988776,1752834644792,-12347.53087483,0.000248,3]
[372988777,1752834644805,-5322.2479185,0.000248,3]
[372988778,1752834644814,-325.96916523,0.000248,3]
[372988779,1752834644824,-19562.399551,0.000248,2]
[372988780,1752834644834,-6747.56264504,0.000248,2]
[372988781,1752834644843,-1926.48,0.00024839,6]
[372988782,1752834644853,-659.20022017,0.00024866,12]
[372988783,1752834644862,-500.0,0.00024873,2]
[372988784,1752834644872,-168.0,0.00024874,2]
[372988785,1752834644881,-1030.82,0.00024879,2]
[372988786,1752834644891,-460.0,0.00024882,2]
[372988787,1752834644903,-460.0,0.00024882,2]
[372988788,1752834644912,-548.85,0.00024882,2]
[372988789,1752834644922,-22230.51457536,0.00024888,2]
[372988790,1752834645145,-167.6037174,0.0002023,2]
[372988791,1752834645155,-2432.3962826,0.000232,7]
[372988792,1752834645166,-6765.3437174,0.000232,7]
[372988793,1752834645177,-3249.09544553,0.000243,7]
[372988794,1752834645189,-5948.64455447,0.000243,7]
[372988795,1752834645198,-2769.48542464,0.00024888,2]
[372988796,1752834645208,-2790.96108693,0.0002489,2]
[372988819,1752834646030,-315.56071227,0.00017999,2]
[372988821,1752834646042,-144.43928773,0.00017999,2]
[372988822,1752834646054,-460.0,0.00017999,2]
[372988823,1752834646064,-460.0,0.00020227,2]
[372988824,1752834646073,-460.0,0.00020501,2]
[372988825,1752834646083,-589.41,0.00020775,2]
[372988826,1752834646093,-260.52,0.00023988,3]
[372988827,1752834646103,-3744.93353667,0.000248,2]
[372988828,1752834646113,-5271.48910596,0.0002489,2]
[372988829,1752834646126,-11056.3695956,0.0002489,2]
[372988830,1752834646139,-371.48318948,0.0002489,2]
[372988839,1752834887253,288.551204,0.00013699,2]
[372988840,1752835531450,-325.47623636,0.00017898,2]
[372988841,1752835531474,-447.85357877,0.00017973,2]
[372988843,1752835630078,-749.51610756,0.00017098,2]
[372988844,1752835639096,-1085.20391233,0.00017098,2]
[372988855,1752835758089,-2168.98865481,0.00017098,2]
[372988856,1752835758110,-335.28883047,0.00017897,2]
[372988857,1752835758132,-500.0,0.00017973,2]
[372988858,1752835758155,-387.45,0.00017989,3]
[372988859,1752835758176,-300.0,0.00017996,2]
[372988860,1752835758197,-1200.0,0.00017996,2]
[372988861,1752835758218,-160.66497673,0.00017996,2]
[372988862,1752835758241,-415.42445125,0.00017996,2]
[372988863,1752835758263,-460.0,0.00017996,2]
[372988864,1752835758285,-460.0,0.00017996,2]
[372988865,1752835758311,-541.94271874,0.00017996,2]
[372988866,1752835758332,-13262.033948,0.00017997,2]
[372988867,1752835772133,-460.0,0.00017996,2]
[372988868,1752835772154,-36737.966052,0.00017997,2]
[372988869,1752835772174,-460.0,0.00017997,2]
[372988870,1752835772194,-460.0,0.00017997,2]
[372988871,1752835772214,-460.0,0.00017997,2]
[372988872,1752835772234,-460.0,0.00017997,2]
[372988873,1752835772253,-460.0,0.00017997,2]
[372988874,1752835772274,-460.0,0.00017997,2]
[372988875,1752835772295,-536.49488777,0.00017997,2]
[372988876,1752835772320,-192.22405627,0.00017997,2]
[372988877,1752835772341,-460.0,0.00017997,2]
[372988878,1752835772363,-461.23892756,0.00017997,2]
[372988879,1752835772383,-463.51778143,0.00017997,2]
[372988880,1752835772404,-461.53590866,0.00017997,2]
[372988881,1752835772425,-460.0,0.00017997,2]
[372988882,1752835772445,-462.10510975,0.00017997,2]
[372988883,1752835772466,-462.39593363,0.00017997,2]
[372988884,1752835772487,-460.0,0.00017997,2]
[372988885,1752835772508,-463.90400341,0.00017997,2]
[372988886,1752835772530,-462.68276146,0.00017997,2]
[372988887,1752835772553,-462.29067726,0.00017997,2]
[372988888,1752835772575,-461.8128757,0.00017997,2]
[372988889,1752835772601,-462.94090629,0.00017997,2]
[372988890,1752835772622,-460.0,0.00017997,2]
[372988891,1752835772642,-465.24238562,0.00017997,2]
[372988892,1752835772662,-461.36121809,0.00017997,2]
[372988894,1752835772683,-460.0,0.00017997,2]
[372988896,1752835772704,-462.36153275,0.00017997,2]
[372988897,1752835772725,-500.0,0.00017997,2]
[372988899,1752835772746,-460.0,0.00017997,2]
[372988900,1752835772766,-460.0,0.00017997,2]
[372988901,1752835772787,-460.0,0.00017997,2]
[372988902,1752835772809,-460.0,0.00017997,2]
[372988903,1752835772829,-460.0,0.00017997,2]
[372988904,1752835772849,-461.27883488,0.00017997,2]
[372988905,1752835772874,-460.0,0.00017997,2]
[372988906,1752835772914,-460.0,0.00017997,2]
[372988907,1752835772938,-460.0,0.00017997,2]
[372988908,1752835772958,-460.0,0.00017997,2]
[372988909,1752835772978,-460.0,0.00017997,2]
[372988910,1752835772999,-460.0,0.00017997,2]
[372988911,1752835773021,-1017.87,0.00017997,2]
[372988912,1752835773043,-460.0,0.00017997,2]
[372988913,1752835773067,-454.63921108,0.00017997,2]
[372988914,1752835773091,-460.0,0.00017997,2]
[372988915,1752835773114,-462.28200181,0.00017997,2]
[372988916,1752835773140,-590.44,0.00017997,2]
[372988917,1752835773163,-460.0,0.00017997,2]
[372988918,1752835773185,-460.0,0.00017997,2]
[372988919,1752835773208,-460.0,0.00017997,2]
[372988920,1752835773229,-460.0,0.00017997,2]
[372988921,1752835773253,-460.0,0.00017997,2]
[372988922,1752835773276,-460.0,0.00017997,2]
[372988923,1752835773299,-460.0,0.00017997,2]
[372988924,1752835773322,-379.27882195,0.00017997,2]
[372988925,1752835773344,-460.0,0.00017997,2]
[372988926,1752835773368,-460.0,0.00017997,2]
[372988927,1752835773390,-337.67835276,0.00017997,2]
[372988928,1752835773412,-460.0,0.00017997,2]
[372988929,1752835773435,-474.47,0.00017997,2]
[372988930,1752835773462,-460.0,0.00017997,2]
[372988931,1752835773484,-750.45,0.00017997,2]
[372988932,1752835773505,-460.0,0.00017997,2]
[372988933,1752835773526,-460.0,0.00017997,2]
[372988934,1752835773548,-282.89331643,0.00017997,2]
[372988935,1752835773571,-460.0,0.00017997,2]
[372988936,1752835773591,-460.0,0.00017998,2]
[372988937,1752835773613,-461.1931662,0.00017998,2]
[372988938,1752835773634,-460.82475903,0.00017998,2]
[372988939,1752835773655,-460.0,0.00017998,2]
[372988940,1752835773675,-460.0,0.00017998,2]
[372988941,1752835773842,-460.0,0.00017998,2]
[372988942,1752835773878,-460.0,0.00017998,2]
[372988943,1752835773900,-461.56144325,0.00017998,2]
[372988944,1752835773925,-460.0,0.00017998,2]
[372988945,1752835773949,-460.0,0.00017998,2]
[372988946,1752835773971,-460.0,0.00017998,2]
[372988947,1752835773991,-460.0,0.00017998,2]
[372988948,1752835774013,-600.82809579,0.00017998,2]
[372988949,1752835774038,-460.0,0.00017998,2]
[372988950,1752835774062,-460.0,0.00017998,2]
[372988951,1752835774084,-460.0,0.00017998,2]
[372988952,1752835774107,-460.0,0.00017998,2]
[372988953,1752835774130,-460.93430916,0.00017998,2]
[372988954,1752835774152,-460.0,0.00017998,2]
[372988955,1752835774175,-460.0,0.00017998,2]
[372988956,1752835774196,-460.0,0.00017998,2]
[372988957,1752835774219,-460.0,0.00017998,2]
[372988958,1752835774241,-458.53833289,0.00017998,2]
[372988959,1752835774263,-460.0,0.00017998,2]
[372988960,1752835774286,-460.0,0.00017998,2]
[372988961,1752835774314,-460.0,0.00017998,2]
[372988962,1752835774337,-460.0,0.00017998,2]
[372988963,1752835774359,-460.0,0.00017998,2]
[372988964,1752835774381,-460.0,0.00017998,2]
[372988965,1752835774402,-462.81881752,0.00017998,2]
[372988966,1752835774424,-460.0,0.00017998,2]
[372988967,1752835774446,-460.0,0.00017998,2]
[372988968,1752835774467,-460.0,0.00017998,2]
[372988969,1752835774488,-460.0,0.00017998,2]
[372988970,1752835774509,-460.0,0.00017998,2]
[372988971,1752835774530,-193.16788254,0.00017998,2]
[372988972,1752835774553,-460.0,0.00017998,2]
[372988973,1752835774577,-460.0,0.00017998,2]
[372988974,1752835774598,-460.0,0.00017998,2]
[372988975,1752835774620,-460.0,0.00017998,2]
[372988976,1752835774640,-1013.76,0.00017998,2]
[372988977,1752835774662,-460.0,0.00017998,2]
[372988978,1752835774684,-316.4811283,0.00017998,2]
[372988979,1752835774707,-263.71536864,0.00017998,2]
[372988985,1752835832218,-460.0,0.00017996,2]
[372988986,1752835832229,-438.89856382,0.00017996,2]
[372988987,1752835832271,-21.10143618,0.00017996,2]
[372988988,1752835832280,-460.0,0.00017996,2]
[372988989,1752835832290,-300.0,0.00017996,2]
[372988990,1752835832303,-770.0,0.00017996,2]
[372988991,1752835832313,-62.08514388,0.00017996,2]
[372988992,1752835832492,-778.85485612,0.00017996,2]
[372988993,1752835832502,-460.0,0.00017997,2]
[372988994,1752835832512,-460.0,0.00017997,2]
[372988995,1752835832522,-207.17129809,0.00017997,2]
[372989009,1752835838267,-252.82870191,0.00017997,2]
[372989011,1752835838276,-460.0,0.00017997,2]
[372989013,1752835838286,-460.0,0.00017997,2]
[372989015,1752835838296,-460.0,0.00017997,2]
[372989017,1752835838306,-196.28463136,0.00017998,2]
[372989019,1752835838316,-460.0,0.00017998,2]
[372989021,1752835838325,-460.0,0.00017998,2]
[372989023,1752835838335,-460.0,0.00017998,2]
[372989025,1752835838345,-475.18775664,0.00017998,2]
[372989027,1752835838356,-460.0,0.00017998,2]
[372989029,1752835838366,-460.0,0.00017998,2]
[372989031,1752835838375,-460.0,0.00017998,2]
[372989033,1752835838385,-79.00923866,0.00017998,2]
[372989059,1752835838626,-380.99076134,0.00017998,2]
[372989061,1752835838636,-999.23,0.00017998,2]
[372989063,1752835838645,-460.0,0.00017998,2]
[372989065,1752835838655,-460.0,0.00017998,2]
[372989067,1752835838664,-460.0,0.00017998,2]
[372989069,1752835838673,-460.0,0.00017998,2]
[372989071,1752835838682,-460.0,0.00017998,2]
[372989073,1752835838692,-460.0,0.00017998,2]
[372989075,1752835838701,-460.0,0.00017998,2]
[372989077,1752835838710,-460.0,0.00017998,2]
[372989079,1752835838719,-460.0,0.00017998,2]
[372989081,1752835838729,-460.0,0.00017998,2]
[372989083,1752835838738,-460.0,0.00017998,2]
[372989085,1752835838748,-460.0,0.00017998,2]
[372989087,1752835838758,-460.0,0.00017998,2]
[372989089,1752835838767,-460.0,0.00017998,2]
[372989091,1752835838777,-460.0,0.00017998,2]
[372989093,1752835838786,-460.0,0.00017998,2]
[372989095,1752835838796,-460.0,0.00017998,2]
[372989097,1752835838806,-460.0,0.00017998,2]
[372989099,1752835838815,-460.0,0.00017998,2]
[372989101,1752835838824,-460.0,0.00017998,2]
[372989103,1752835838834,-460.0,0.00017998,2]
[372989105,1752835838843,-460.0,0.00017998,2]
[372989107,1752835838853,-460.0,0.00017998,2]
[372989109,1752835838863,-460.0,0.00017998,2]
[372989111,1752835838874,-460.0,0.00017998,2]
[372989113,1752835838883,-460.0,0.00017998,2]
[372989116,1752835838897,-460.0,0.00017998,2]
[372989117,1752835838907,-460.0,0.00017998,2]
[372989120,1752835838916,-460.0,0.00017998,2]
[372989121,1752835838927,-459.59349225,0.00017998,2]
[372989124,1752835838936,-460.0,0.00017998,2]
[372989126,1752835838946,-460.0,0.00017998,2]
[372989128,1752835838956,-460.0,0.00017998,2]
[372989129,1752835838967,-200.37308095,0.00017998,2]
[372989132,1752835838978,-460.0,0.00017998,2]
[372989133,1752835838987,-460.0,0.00017998,2]
[372989135,1752835838997,-460.0,0.00017998,2]
[372989137,1752835839007,-460.0,0.00017998,2]
[372989139,1752835839017,-543.55782187,0.00017999,2]
[372989141,1752835839027,-460.0,0.00017999,2]
[372989144,1752835839036,-460.0,0.00017999,2]
[372989145,1752835839046,-460.0,0.00017999,2]
[372989148,1752835839056,-461.17679125,0.00017999,2]
[372989150,1752835839066,-460.0,0.00017999,2]
[372989152,1752835839076,-124.18452673,0.00017999,2]
[372989154,1752835839088,-335.81547327,0.00017999,2]
[372989156,1752835839098,-463.00081038,0.00017999,2]
[372989158,1752835839108,-460.0,0.00017999,2]
[372989160,1752835839118,-460.0,0.00017999,2]
[372989162,1752835839128,-460.0,0.00017999,2]
[372989164,1752835839137,-460.0,0.00017999,2]
[372989166,1752835839147,-359.62641234,0.00017999,2]
[372989168,1752835839158,-100.37358766,0.00017999,2]
[372989170,1752835839168,-460.0,0.00017999,2]
[372989172,1752835839177,-460.0,0.00017999,2]
[372989174,1752835839187,-460.0,0.00017999,2]
[372989176,1752835839196,-460.0,0.00017999,2]
[372989178,1752835839206,-460.0,0.00017999,2]
[372989180,1752835839216,-461.29245081,0.00017999,2]
[372989182,1752835839225,-462.90702944,0.00017999,2]
[372989184,1752835839235,-460.0,0.00017999,2]
[372989186,1752835839244,-460.0,0.00017999,2]
[372989188,1752835839254,-460.0,0.00017999,2]
[372989190,1752835839264,-463.94729004,0.00017999,2]
[372989192,1752835839273,-460.0,0.00017999,2]
[372989194,1752835839283,-463.2930676,0.00017999,2]
[372989196,1752835839292,-460.0,0.00017999,2]
[372989198,1752835839302,-460.0,0.00017999,2]
[372989200,1752835839311,-313.36939552,0.00017999,2]
[372989202,1752835839322,-460.0,0.00017999,2]
[372989204,1752835839331,-460.0,0.00017999,2]
[372989206,1752835839341,-463.91738592,0.00017999,2]
[372989208,1752835839351,-460.0,0.00017999,2]
[372989211,1752835839361,-460.0,0.00017999,2]
[372989213,1752835839371,-387.26,0.00017999,2]
[372989215,1752835839381,-460.0,0.00017999,2]
[372989217,1752835839391,-460.0,0.00017999,2]
[372989219,1752835839400,-460.0,0.00017999,2]
[372989221,1752835839410,-461.27182458,0.00017999,2]
[372989223,1752835839419,-462.89057048,0.00017999,2]
[372989225,1752835839429,-460.0,0.00017999,2]
[372989227,1752835839438,-155.94204301,0.00017999,2]
[372989229,1752835839447,-460.0,0.00017999,2]
[372989231,1752835839457,-460.0,0.00017999,2]
[372989232,1752835839466,-460.0,0.00017999,2]
[372989235,1752835839476,-460.0,0.00017999,2]
[372989236,1752835839486,-462.00714888,0.00017999,2]
[372989239,1752835839497,-500.0,0.00017999,2]
[372989241,1752835839507,-460.0,0.00017999,2]
[372989243,1752835839517,-322.87988812,0.00017999,2]
[372989244,1752835839527,-469.14110224,0.00017999,2]
[372989246,1752835839536,-460.0,0.00017999,2]
[372989248,1752835839545,-460.0,0.00017999,2]
[372989250,1752835839555,-472.55883697,0.00017999,2]
[372989252,1752835839564,-552.50594142,0.00017999,2]
[372989255,1752835839573,-460.0,0.00017999,2]
[372989257,1752835839583,-460.0,0.00017999,2]
[372989259,1752835839592,-460.0,0.00017999,2]
[372989261,1752835839603,-460.0,0.00017999,2]
[372989263,1752835839612,-348.20567537,0.00017999,2]
[372989266,1752835839624,-153.33287646,0.00017999,2]
[372989268,1752835839633,-460.0,0.00017999,2]
[372989270,1752835839643,-460.0,0.00017999,2]
[372989272,1752835839652,-460.0,0.00017999,2]
[372989274,1752835839661,-460.0,0.00017999,2]
[372989276,1752835839671,-460.0,0.00017999,2]
[372989278,1752835839680,-285.69965024,0.00017999,2]
[372989280,1752835839689,-460.0,0.00017999,2]
[372989282,1752835839699,-490.61039705,0.00017999,2]
[372989284,1752835839708,-460.0,0.00017999,2]
[372989286,1752835839718,-460.0,0.00017999,2]
[372989288,1752835839727,-1979.8817606,0.00018126,2]
[372989290,1752835839737,-193.73,0.00018262,3]
[372989292,1752835839746,-460.0,0.0001827,2]
[372989294,1752835839755,-460.0,0.0001827,2]
[372989296,1752835839765,-460.0,0.0001827,2]
[372989298,1752835839774,-460.0,0.0001827,2]
[372989299,1752835839783,-460.0,0.0001827,2]
[372989302,1752835839793,-840.94,0.0001827,2]
[372989304,1752835839803,-460.0,0.00018271,2]
[372989306,1752835839813,-460.0,0.00018271,2]
[372989307,1752835839823,-590.44,0.00018271,2]
[372989310,1752835839832,-460.0,0.00018271,2]
[372989311,1752835839842,-460.0,0.00018271,2]
[372989313,1752835839854,-474.47,0.00018271,2]
[372989315,1752835839863,-750.45,0.00018271,2]
[372989318,1752835839873,-460.0,0.00018271,2]
[372989319,1752835839882,-460.0,0.00018271,2]
[372989321,1752835839897,-460.0,0.00018271,2]
[372989324,1752835839907,-460.0,0.00018271,2]
[372989325,1752835839916,-460.0,0.00018271,2]
[372989327,1752835839926,-460.0,0.00018271,2]
[372989330,1752835839937,-460.0,0.00018271,2]
[372989332,1752835839946,-438.11286961,0.00018272,2]
[372989334,1752835839956,-460.0,0.00018272,2]
[372989336,1752835839965,-460.0,0.00018272,2]
[372989338,1752835839975,-460.0,0.00018272,2]
[372989340,1752835839984,-460.0,0.00018272,2]
[372989342,1752835839994,-1013.76,0.00018272,2]
[372989355,1752835840106,-460.0,0.00018272,2]
[372989357,1752835840121,-460.0,0.00018272,2]
[372989359,1752835840132,-460.0,0.00018272,2]
[372989361,1752835840141,-460.0,0.00018272,2]
[372989363,1752835840150,-460.0,0.00018272,2]
[372989365,1752835840160,-460.0,0.00018272,2]
[372989367,1752835840170,-999.23,0.00018272,2]
[372989369,1752835840179,-460.0,0.00018272,2]
[372989371,1752835840188,-460.0,0.00018272,2]
[372989373,1752835840198,-460.0,0.00018272,2]
[372989375,1752835840209,-460.0,0.00018272,2]
[372989377,1752835840218,-460.0,0.00018272,2]
[372989379,1752835840227,-460.0,0.00018272,2]
[372989381,1752835840237,-460.0,0.00018272,2]
[372989383,1752835840246,-460.0,0.00018272,2]
[372989385,1752835840256,-460.0,0.00018272,2]
[372989387,1752835840266,-460.0,0.00018272,2]
[372989389,1752835840275,-460.0,0.00018272,2]
[372989391,1752835840285,-460.0,0.00018272,2]
[372989393,1752835840296,-460.0,0.00018272,2]
[372989395,1752835840305,-460.0,0.00018272,2]
[372989397,1752835840315,-173.99,0.00018272,2]
[372989399,1752835840325,-460.0,0.00018272,2]
[372989400,1752835840334,-460.0,0.00018272,2]
[372989401,1752835840344,-460.0,0.00018272,2]
[372989402,1752835840355,-220.011865,0.00018273,2]
[372989403,1752835840365,-460.0,0.00018273,2]
[372989404,1752835840375,-479.20150585,0.00018273,2]
[372989405,1752835840384,-460.0,0.00018273,2]
[372989406,1752835840393,-460.0,0.00018273,2]
[372989407,1752835840403,-244.09,0.00018273,2]
[372989408,1752835840413,-460.0,0.00018273,2]
[372989409,1752835840423,-460.0,0.00018273,2]
[372989410,1752835840432,-460.0,0.00018273,2]
[372989411,1752835840442,-460.0,0.00018273,2]
[372989412,1752835840451,-460.0,0.00018273,2]
[372989413,1752835840461,-228.08096883,0.00018273,2]
[372989414,1752835840471,-460.0,0.00018544,2]
[372989415,1752835840482,-460.0,0.00018544,2]
[372989416,1752835840491,-268.78754249,0.00018544,2]
[372989417,1752835840500,-460.0,0.00018544,2]
[372989418,1752835840510,-840.94,0.00018544,2]
[372989419,1752835840519,-543.41239829,0.00018545,2]
[372989420,1752835840528,-599.38,0.00018545,2]
[372989421,1752835840538,-590.44,0.00018545,2]
[372989422,1752835840547,-460.0,0.00018545,2]
[372989423,1752835840557,-176.45,0.00018545,2]
[372989424,1752835840566,-474.47,0.00018545,2]
[372989426,1752835840576,-750.45,0.00018545,2]
[372989428,1752835840585,-551.14182321,0.00018545,2]
[372989430,1752835840595,-601.97,0.00018545,2]
[372989432,1752835840606,-460.0,0.00018545,2]
[372989433,1752835840615,-460.0,0.00018545,2]
[372989436,1752835840624,-460.0,0.00018545,2]
[372989438,1752835840634,-460.0,0.00018545,2]
[372989440,1752835840642,-460.0,0.00018546,2]
[372989441,1752835840652,-460.0,0.00018546,2]
[372989444,1752835840661,-460.0,0.00018546,2]